[Event "Dutch Open 2022"]
[Site "Dieren"]
[Date "2022.07.26"]
[Round "1.12"]
[White "Op den Dries, Johan"]
[Black "Grutter, Tim"]
[Result "0-1"]
[ECO "D01"]
[WhiteElo "2104"]
[BlackElo "2246"]
[Annotator "TA"]
[PlyCount "108"]
[EventDate "2022.07.14"]
[EventType "swiss"]
[EventCountry "NED"]
[SourceTitle "playchess.com"]
[Source "ChessBase"]
[SourceQuality "1"]
[TimeControl "40/5400+30:1800+30"]

{[%evp 10,108,0,7,5,-24,-17,-14,-8,-6,-11,-34,0,-33,-47,-35,-35,-57,-69,-54,-43,-127,-118,-122,-127,-134,-140,-79,-56,-51,-63,-62,-64,-132,-139,-384,-401,-391,-392,-375,-364,-468,-364,-529,-460,-528,-514,-528,-515,-542,-506,-536,-512,-593,-597,-597,-594,-588,-582,-575,-575,-560,-530,-608,-604,-939,-935,-855,-777,-1078,-1053,-12845,-12845,-12847,-12847,-12850,-12850,-12850,-27999,-27999,-27999,-27999,-27999,-27999,-27999,-27999,-27999,-27999,-27999,-27999,-27999,-27999,-27999,-27999,-27998,-27999,-27999,-27999,-27998,-27999,-27999]} 1. d4 {[%emt 0:00:03]} Nf6 {[%emt 0:00:05]} 2. Nc3 {[%emt 0:00:04]} d5 {[%emt 0:00:05]} 3. Bg5 {[%emt 0:00:05]} Nbd7 {[%emt 0:00:03]} 4. e3 {[%emt 0:00:46]} g6 {[%emt 0:02:57]} 5. Nf3 {[%emt 0:01:27]} Bg7 {[%emt 0:00:20]} 6. Bd3 {[%emt 0:03:14]} O-O {[%emt 0:03:34] D01: Veresov Opening.} 7. Ne2 {[%emt 0:03:03]} c5 {[%emt 0:02:53] Hoping for ...c4.} 8. c3 {[%emt 0:00:18]} Qb6 {[%emt 0:02:29] [#] The position is equal.} 9. Rb1 $146 {[%emt 0:03:40]} ({Predecessor:} 9. Qb3 c4 10. Qxb6 Nxb6 11. Bc2 h6 12. Bxf6 {½-½ (12) Murawski,G (2311)-Tworuszka,M (2305) Opole 2006}) 9... Re8 {[%emt 0:04:11]} 10. Qa4 {[%emt 0:02:34]} e5 {[%emt 0:08:24] Threatens to win with ...e4.} 11. dxe5 {[%emt 0:06:20]} (11. Bxf6 $5 Bxf6 12. dxe5 Bxe5 13. Nxe5 Rxe5 14. O-O $11) 11... Nxe5 {[%emt 0:03:17]} 12. Nxe5 {[%emt 0:08:17]} Rxe5 {[%emt 0:00:31]} 13. Bf4 {[%emt 0:00:25]} Re8 {[%emt 0:02:25]} 14. Qd1 {[%emt 0:06:26]} d4 {[%emt 0:05:44]} 15. cxd4 {[%emt 0:01:59]} ({White should play} 15. exd4 $15 cxd4 16. O-O) 15... cxd4 $17 {[%emt 0:00:49]} 16. O-O {[%emt 0:04:19]} dxe3 {[%emt 0:04:43]} 17. Bxe3 {[%emt 0:00:35]} Rxe3 {[%emt 0:00:47]} 18. fxe3 {[%emt 0:00:05]} Qxe3+ {[%emt 0:00:50]} 19. Kh1 {[%emt 0:00:04]} Ng4 {[%emt 0:02:25] White must now prevent ...Qh6.} 20. Bc4 {[%emt 0:03:21]} Bf5 {[%emt 0:01:46] ...Qh6 is the strong threat. Active counter play!} 21. Qb3 {[%emt 0:06:14]} ({Not} 21. Qd5 $2 Bxb1 22. Rf3 (22. Qxf7+ $2 Kh8 $19) 22... Qe5 23. Qxf7+ Kh8 $19) (21. Ng3 $1 $15 Nf2+ 22. Rxf2 Qxf2 23. Nxf5 Qxf5 24. Qf1) 21... Qe5 {[%emt 0:10:06][%csl Gg4][%cal Re5h2]} 22. Ng3 $2 {[%emt 0:02:51] This costs White the game.} (22. Qg3 $17 {is a better defense.}) 22... Bxb1 $19 {[%emt 0:01:31] A strong pair of Bishops.} 23. Qxb7 {[%emt 0:03:33] [#]} Rf8 {[%emt 0:07:36]} 24. Rxf7 {[%emt 0:10:26]} Kh8 {[%emt 0:00:07]} 25. Rxf8+ {[%emt 0:02:27]} Bxf8 {[%emt 0:00:09][%cal Bg7f8,Bf8c5,Bc5b6][%mdl 32]} 26. Qc8 {[%emt 0:00:06]} (26. Qf7 {keeps fighting.} Qg7 27. Qf4) 26... Nf2+ {[%emt 0:01:47]} 27. Kg1 {[%emt 0:00:04][%cal Rc8f8]} Qc5 {[%emt 0:00:07]} 28. Qxc5 {[%emt 0:02:45]} Bxc5 {[%emt 0:00:04]} 29. b4 {[%emt 0:00:24]} Bb6 {[%emt 0:01:39]} 30. Kf1 {[%emt 0:00:17]} Nd1 {[%emt 0:01:27] And now ...Ne3+ would win.} 31. Ke2 {[%emt 0:00:54] [#]} Bxa2 $1 {[%emt 0:01:47][%mdl 512]} 32. Bxa2 {[%emt 0:00:39][%mdl 4096] Endgame KBN-KBN} Nc3+ {[%emt 0:00:05]} 33. Kd3 {[%emt 0:00:03]} Nxa2 {[%emt 0:00:05]} 34. Kc4 {[%emt 0:00:03]} Nc1 {[%emt 0:01:32]} 35. Ne4 {[%emt 0:01:09]} Ne2 {[%emt 0:00:25]} 36. Nd6 {[%emt 0:00:21]} Bg1 {[%emt 0:05:00]} 37. Kb5 {[%emt 0:02:04]} Bxh2 {[%emt 0:01:06]} 38. Nc8 {[%emt 0:00:04]} Bg1 {[%emt 0:00:09]} 39. Ka6 {[%emt 0:00:05]} Kg7 {[%emt 0:07:03]} 40. Nxa7 {[%emt 0:01:25]} Bxa7 {[%emt 0:00:20]} 41. Kxa7 {[%emt 0:30:03] KN-KPP} Nc3 {[%emt 0:30:07]} 42. Kb6 {[%emt 0:00:17]} Nd5+ {[%emt 0:00:30]} 43. Kc5 {[%emt 0:00:04]} Nxb4 {[%emt 0:00:01]} 44. Kxb4 {[%emt 0:00:06] KPP-KP. Black mates.} Kf6 {[%emt 0:00:03]} 45. Kc3 {[%emt 0:00:11]} Kf5 {[%emt 0:00:15]} 46. Kd2 {[%emt 0:00:06]} Kf4 {[%emt 0:00:10]} 47. Ke2 {[%emt 0:00:04]} Kg3 {[%emt 0:00:03]} 48. Kf1 {[%emt 0:00:03]} h5 {[%emt 0:00:24][%cal Bh7h5,Bh5h4,Bh4h3][%mdl 32]} 49. Kg1 {[%emt 0:00:04]} g5 {[%emt 0:00:48][%cal Bg6g5,Bg5g4,Bg4g3][%mdl 32]} 50. Kh1 {[%emt 0:00:38]} h4 {[%emt 0:00:29]} 51. Kg1 {[%emt 0:00:04]} g4 {[%emt 0:00:03]} 52. Kh1 {[%emt 0:00:13]} Kf2 {[%emt 0:00:13]} 53. Kh2 {[%emt 0:00:16]} g3+ {[%emt 0:00:06]} 54. Kh1 {[%emt 0:00:11]} h3 $1 {[%emt 0:00:04] Weighted Error Value: White=0.33/Black=0.06 (flawless)} 0-1

[Event "Dutch Open 2022"]
[Site "Dieren"]
[Date "2022.07.26"]
[Round "1.13"]
[White "Stillger, Bernhard"]
[Black "Bus, Tom"]
[Result "1-0"]
[ECO "D02"]
[WhiteElo "2245"]
[BlackElo "2102"]
[Annotator "TA"]
[PlyCount "67"]
[EventDate "2022.07.14"]
[EventType "swiss"]
[EventCountry "NED"]
[SourceTitle "playchess.com"]
[Source "ChessBase"]
[SourceQuality "1"]
[TimeControl "40/5400+30:1800+30"]

{[%evp 10,67,21,0,0,0,0,0,0,0,0,0,0,0,0,-17,-17,-14,0,-9,-18,-12,-12,-34,4,12,8,-4,21,-11,-20,-43,-2,-61,-4,-5,-8,-8,0,0,8,8,17,20,182,161,169,153,289,274,403,403,568,489,1170,387,379,371,405,405]} 1. d4 {[%emt 0:00:04]} Nf6 {[%emt 0:01:11]} 2. Nf3 {[%emt 0:00:40]} d5 {[%emt 0:01:42]} 3. Bf4 {[%emt 0:00:11]} e6 {[%emt 0:01:41]} 4. e3 {[%emt 0:01:35]} Bd6 {[%emt 0:01:10]} 5. Bxd6 {[%emt 0:04:53]} Qxd6 {[%emt 0:00:08]} 6. Nbd2 {[%emt 0:01:20]} O-O {[%emt 0:02:20] D02: 1 d4 d5 2 Nf3 sidelines, including 2...Nf6 3 g3 and 2...Nf6 3 Bf4.} 7. c4 {[%emt 0:02:38]} Nbd7 {[%emt 0:04:59]} 8. Be2 {[%emt 0:04:00]} b6 {[%emt 0:03:16][%cal Bb7b6,Bb6c5][%mdl 32] The position is equal.} 9. O-O {[%emt 0:02:53]} Bb7 {[%emt 0:02:09]} 10. Rc1 {[%emt 0:02:49]} c5 {[%emt 0:09:10]} 11. cxd5 {[%emt 0:09:23]} exd5 {[%emt 0:02:35] [#]} 12. dxc5 $146 {[%emt 0:03:29]} ({Predecessor:} 12. b3 Rac8 13. Rc2 a6 14. h3 b5 15. dxc5 Nxc5 16. Nd4 Nce4 17. Nxe4 Nxe4 18. Bg4 {½-½ (35) Jakso,A (1238)-Peredi,O (1646) Hungary 2016}) 12... bxc5 {[%emt 0:00:25]} 13. Qa4 {[%emt 0:03:13]} Qb6 {[%emt 0:03:52]} 14. b3 {[%emt 0:07:45]} Bc6 {[%emt 0:02:31]} 15. Qf4 {[%emt 0:03:46]} Rfe8 {[%emt 0:03:33]} 16. Bd3 {[%emt 0:04:22]} Bb5 {[%emt 0:04:12]} 17. Bxb5 {[%emt 0:05:16]} Qxb5 {[%emt 0:00:11]} 18. Rc2 {[%emt 0:00:31]} a5 {[%emt 0:01:43][%cal Ba7a5,Ba5a4][%mdl 32]} 19. Rfc1 {[%emt 0:03:59]} a4 {[%emt 0:06:08]} 20. h3 {[%emt 0:00:48][%cal Ob3b4]} h6 {[%emt 0:01:48]} 21. Kh1 {[%emt 0:37:25]} (21. b4 $11 cxb4 22. Nd4) 21... Qb8 {[%emt 0:14:35]} ({Better is} 21... axb3 $15 22. Nxb3 c4) 22. Qxb8 $11 {[%emt 0:00:00]} Rexb8 {[%emt 0:01:31]} 23. g4 {[%emt 0:00:00]} Rb4 {[%emt 0:02:27]} 24. Kg2 {[%emt 0:00:00]} Ra5 {[%emt 0:04:54]} 25. Ne1 {[%emt 0:00:00]} axb3 {[%emt 0:11:59]} 26. Nxb3 {[%emt 0:00:00]} Rxa2 {[%emt 0:01:17] Loses the game.} 27. Rxa2 $18 {[%emt 0:00:00]} Rxb3 {[%emt 0:00:05]} 28. Nf3 {[%emt 0:00:00]} Rd3 {[%emt 0:02:37]} (28... g6 $16 29. Ra7 c4) 29. Rb1 {[%emt 0:00:00]} g6 {[%emt 0:01:45]} (29... d4 {was worth a try.} 30. exd4 g5) 30. Rb7 {[%emt 0:00:00]} Kf8 {[%emt 0:01:01]} (30... Rc3 {was necessary.} 31. Raa7 Kg7 32. Rxd7 Nxd7 33. Rxd7 d4 34. exd4 Kf6) 31. Raa7 {[%emt 0:00:00]} Ke8 {[%emt 0:04:35] [#]} (31... Rc3 $142 32. Rxd7 Nxd7 33. Rxd7 d4 34. exd4 Ke8) 32. Rxd7 $2 {[%emt 0:00:00]} Nxd7 {[%emt 0:00:06] [#]} 33. Rxd7 $1 {[%emt 0:00:00][%mdl 512]} d4 {[%emt 0:04:11]} (33... Rxe3 34. Rxd5) 34. Rd5 {[%emt 0:00:00] Weighted Error Value: White=0.31/Black=0.43} 1-0

[Event "Dutch Open 2022"]
[Site "Dieren"]
[Date "2022.07.26"]
[Round "1.14"]
[White "Labruyere, Roger"]
[Black "Domalchuk-Jonasson, Aleksandr"]
[Result "0-1"]
[ECO "C07"]
[WhiteElo "2070"]
[BlackElo "2244"]
[Annotator "TA"]
[PlyCount "78"]
[EventDate "2022.07.14"]
[EventType "swiss"]
[EventCountry "NED"]
[SourceTitle "playchess.com"]
[Source "ChessBase"]
[SourceQuality "1"]
[TimeControl "40/5400+30:1800+30"]

{[%evp 17,78,0,-5,-54,28,19,0,0,10,8,45,32,40,13,31,-139,-142,-118,-47,-195,-187,-497,-492,-485,-401,-434,-371,-404,-372,-481,-492,-505,-488,-569,-468,-530,-452,-425,-312,-538,-427,-433,-402,-477,-434,-618,0,-490,-475,-582,-541,-658,-659,-660,-647,-710,-687,-1665,-1521,-1427,-1334,-29974,-29974]} 1. e4 {[%emt 0:00:01]} e6 {[%emt 0:00:55]} 2. d4 {[%emt 0:00:06]} d5 {[%emt 0:00:15]} 3. Nd2 {[%emt 0:00:03]} c5 {[%emt 0:00:38]} 4. Ngf3 {[%emt 0:00:08]} cxd4 {[%emt 0:00:53]} 5. Nxd4 {[%emt 0:00:07]} Nc6 {[%emt 0:00:24]} 6. Bb5 {[%emt 0:00:08]} Bd7 {[%emt 0:00:32]} 7. Nxc6 {[%emt 0:00:32]} bxc6 {[%emt 0:00:31]} 8. Bd3 {[%emt 0:00:04]} Qc7 {[%emt 0:03:41]} 9. O-O {[%emt 0:00:58]} Bd6 {[%emt 0:01:08]} 10. Nf3 {[%emt 0:05:09] C07: French Tarrasch: 3...c5, 4 Ngf3 and 4 exd5 Qxd5.} (10. h3 $11) 10... Ne7 {[%emt 0:00:57]} (10... e5 $1 $15) 11. c4 $11 {[%emt 0:08:32]} dxe4 {[%emt 0:07:22]} 12. Bxe4 {[%emt 0:00:43] The position is equal.} f5 {[%emt 0:00:21]} 13. Bc2 {[%emt 0:00:46] [#]} e5 $146 {[%emt 0:01:39][%cal Be6e5,Be5e4,Be4f3][%mdl 32]} ({Predecessor:} 13... O-O 14. Re1 c5 15. Qe2 Ng6 16. Be3 e5 17. Rad1 Bc6 18. Ng5 Rf6 19. b4 e4 {0-1 (34) Valkama,E (2284)-Keinanen,T (2460) Sastamala 2021}) 14. b4 {[%emt 0:08:59]} Bxb4 {[%emt 0:11:47]} 15. Bb2 {[%emt 0:00:26]} e4 {[%emt 0:00:26]} 16. Bxg7 $2 {[%emt 0:02:50]} (16. Ng5 $14 {keeps the upper hand.}) 16... Rg8 $17 {[%emt 0:07:24]} 17. Be5 {[%emt 0:00:35] [#]} Qa5 {[%emt 0:00:31]} (17... Rxg2+ $1 $17 {[%mdl 512]} 18. Kh1 Qa5 $1) 18. Bd6 {[%emt 0:10:28]} exf3 $19 {[%emt 0:06:11]} 19. Rb1 $2 {[%emt 0:14:23]} (19. g3 {nothing else works.}) 19... Bxd6 {[%emt 0:14:33]} 20. Qxd6 {[%emt 0:00:22]} Rg6 {[%emt 0:01:06]} 21. Qf4 {[%emt 0:01:07]} Rxg2+ {[%emt 0:00:36]} 22. Kh1 {[%emt 0:00:03]} Rg4 {[%emt 0:02:44]} 23. Qd6 {[%emt 0:00:30]} Rg6 {[%emt 0:01:53]} 24. Qf4 {[%emt 0:00:17]} Qc5 {[%emt 0:01:02]} 25. h3 {[%emt 0:08:58]} Kf7 {[%emt 0:03:08]} 26. Rb7 {[%emt 0:01:57]} Qd6 {[%emt 0:06:17]} 27. Qxf3 {[%emt 0:02:22]} Be6 {[%emt 0:01:53]} 28. Re1 $2 {[%emt 0:10:27]} (28. Bxf5 Bxf5 29. Qxf5+ Kg8 30. Qe4) 28... Kg8 {[%emt 0:03:34]} 29. Bb3 {[%emt 0:03:53]} Qc5 {[%emt 0:05:27]} 30. Qf4 {[%emt 0:02:03]} Re8 {[%emt 0:04:35]} 31. Re5 {[%emt 0:03:53] [#]} (31. Bd1 $142 Bxc4 32. Qe3 Bd5+ 33. Bf3 Qxe3 34. Rxe3) 31... Qa3 $2 {[%emt 0:02:48]} ({Better is} 31... Qd6 $1 $19 {[%cal Rd6d3] ...Qd3 is the strong threat.} 32. f3 c5) 32. Qe3 {[%emt 0:01:16][%mdl 8192]} (32. Rxe6 $1 $11 {and White stays safe.} Rxe6 33. c5) 32... f4 {[%emt 0:01:52]} 33. Qe1 {[%emt 0:05:29]} Qa6 {[%emt 0:02:59]} 34. Rxe6 {[%emt 0:03:44]} Qxb7 {[%emt 0:00:15]} 35. c5 {[%emt 0:00:05] Rxe7+ would kill now.} Kf8 {[%emt 0:04:20]} 36. Qe5 {[%emt 0:00:43] White threatens Rf6+ and mate.} Rxe6 {[%emt 0:01:46]} 37. Qxf4+ {[%emt 0:02:48] [#]} Nf5 $1 {[%emt 0:00:46]} 38. Qxf5+ {[%emt 0:02:35]} Qf7 {[%emt 0:00:07]} 39. Bxe6 {[%emt 0:00:05]} Rxe6 {[%emt 0:00:08] Weighted Error Value: White=1.05/Black=0.44} 0-1

[Event "Dutch Open 2022"]
[Site "Dieren"]
[Date "2022.07.26"]
[Round "1.15"]
[White "Sekar, B."]
[Black "Kumar, Prajit Sai"]
[Result "1-0"]
[ECO "B30"]
[WhiteElo "2241"]
[BlackElo "2040"]
[Annotator "TA"]
[PlyCount "63"]
[EventDate "2022.07.14"]
[EventType "swiss"]
[EventCountry "NED"]
[SourceTitle "playchess.com"]
[Source "ChessBase"]
[SourceQuality "1"]
[TimeControl "40/5400+30:1800+30"]

{[%evp 9,63,42,47,45,56,30,38,0,3,0,15,4,3,10,10,8,32,22,21,27,29,13,64,39,75,24,35,22,30,6,50,34,27,23,173,177,169,169,173,178,178,66,162,156,486,476,458,438,862,820,941,935,916,889,29994,283]} 1. e4 {[%emt 0:00:04]} c5 {[%emt 0:00:04]} 2. Nf3 {[%emt 0:00:08]} Nc6 {[%emt 0:00:04]} 3. Bb5 {[%emt 0:01:57]} e5 {[%emt 0:00:25]} 4. O-O {[%emt 0:04:45]} Bd6 {[%emt 0:00:13]} 5. c3 {[%emt 0:05:56]} a6 {[%emt 0:00:09]} 6. Ba4 {[%emt 0:05:51] B30: Sicilian: 2...Nc6 3 Bb5, lines without ...g6.} b5 {[%emt 0:00:11]} 7. Bc2 {[%emt 0:00:06]} Nge7 {[%emt 0:00:26]} 8. d4 {[%emt 0:01:21] White is slightly better.} cxd4 {[%emt 0:00:28]} (8... exd4 {is interesting.} 9. cxd4 cxd4 10. a4 Bb7) 9. cxd4 {[%emt 0:00:07]} exd4 {[%emt 0:01:36]} 10. Nxd4 {[%emt 0:16:11]} Nxd4 {[%emt 0:00:52]} 11. Qxd4 {[%emt 0:00:03]} Qc7 {[%emt 0:00:14][%csl LRc2,LRh2] [#]} 12. h3 $1 {[%emt 0:02:18]} O-O {[%emt 0:07:44]} (12... Be5 13. Qd1) 13. Qd3 {[%emt 0:02:26][%cal Oe4e5]} Ng6 {[%emt 0:02:42][%cal Be7g6,Bg6f4,Bf4e6,Be6d4][%mdl 32]} 14. Nc3 {[%emt 0:00:11] [#]} Bb7 $146 {[%emt 0:05:25]} ({Predecessor:} 14... Ne5 15. Qe2 Bb7 16. Rd1 Bc5 17. Bf4 d6 18. Bb3 Rae8 19. Bd5 Bc8 20. Rac1 Qe7 21. a3 Qh4 22. Bg3 Qxg3 {0-1 (22) Pirard,N (2049)-Vande Velde,E (1894) Brasschaat 2017}) 15. Bb3 {[%emt 0:04:14]} Bh2+ {[%emt 0:04:29]} (15... Ne5 $5 {[%cal Re5d3]} 16. Qe2 Nc4 $11) 16. Kh1 {[%emt 0:00:25]} Bf4 {[%emt 0:01:49]} 17. Bxf4 {[%emt 0:04:56]} (17. Rd1 $16) 17... Nxf4 $11 {[%emt 0:00:25]} 18. Qg3 {[%emt 0:00:18]} Rac8 {[%emt 0:01:50]} 19. Rac1 {[%emt 0:05:26][%cal Oc3e2] Hoping for Ne2!} Ne6 {[%emt 0:04:47]} 20. f4 {[%emt 0:12:20]} Nd4 {[%emt 0:02:09]} 21. Bd5 {[%emt 0:06:04] And now Qe3 would win.} Bxd5 {[%emt 0:08:19]} (21... b4 $1 $11 {and Black stays safe.} 22. Qe3 bxc3 23. Qxd4 Bxd5 24. Qxd5 Qc4 25. bxc3 Qxd5 26. exd5 Rc5) 22. Nxd5 $18 {[%emt 0:00:20]} Qxc1 {[%emt 0:14:12]} 23. Rxc1 {[%emt 0:00:04]} Rxc1+ {[%emt 0:00:08]} 24. Kh2 {[%emt 0:00:05] Strongly threatening Qe3.} Nc6 {[%emt 0:01:33]} 25. Nf6+ {[%emt 0:07:02][%mdl 1024] White has strong compensation.} Kh8 {[%emt 0:00:06] [#]} 26. Nh5 {[%emt 0:00:13][%csl Gh5][%cal Rg3g7]} g6 {[%emt 0:03:35]} (26... Rg8 $16) 27. Nf6 {[%emt 0:00:11][%cal Bh5f6,Bf6d7,Bd7e5][%mdl 32]} Kg7 {[%emt 0:00:33]} 28. Qh4 {[%emt 0:02:19]} Rc2 {[%emt 0:07:34]} (28... Rd1 $142 29. f5 (29. Nxh7 Rh8 $16) 29... Ne5 30. Nxh7 Rh8) 29. Nxd7 {[%emt 0:01:56]} Rd8 {[%emt 0:00:30]} 30. Qf6+ {[%emt 0:00:08]} Kg8 {[%emt 0:00:08]} 31. Ne5 {[%emt 0:00:03]} Rc8 {[%emt 0:01:36]} 32. Qxf7+ {[%emt 0:00:41] Weighted Error Value: White=0.15 (very precise) /Black=0.74} 1-0

[Event "Dutch Open 2022"]
[Site "Dieren"]
[Date "2022.07.26"]
[Round "1.15"]
[White "Balaji Sekar"]
[Black "Kumar, Prajit Sai"]
[Result "1-0"]
[ECO "B30"]
[WhiteElo "1189"]
[BlackElo "2040"]
[Annotator "TA"]
[PlyCount "63"]
[EventDate "2022.07.14"]
[EventType "swiss"]
[EventCountry "NED"]
[SourceTitle "playchess.com"]
[Source "ChessBase"]
[SourceQuality "1"]
[TimeControl "40/5400+30:1800+30"]

{[%evp 9,63,33,41,50,48,42,31,0,0,0,29,0,0,0,0,12,29,36,35,25,31,37,80,53,66,41,33,27,36,23,56,19,27,12,172,174,175,179,176,167,174,116,151,162,445,428,415,384,811,798,849,867,849,810,29994,29995]} 1. e4 {[%emt 0:00:04]} c5 {[%emt 0:00:04]} 2. Nf3 {[%emt 0:00:08]} Nc6 {[%emt 0:00:04]} 3. Bb5 {[%emt 0:01:57]} e5 {[%emt 0:00:25]} 4. O-O {[%emt 0:04:45]} Bd6 {[%emt 0:00:13]} 5. c3 {[%emt 0:05:56]} a6 {[%emt 0:00:09]} 6. Ba4 {[%emt 0:05:51] B30: Sicilian: 2...Nc6 3 Bb5, lines without ...g6.} b5 {[%emt 0:00:11]} 7. Bc2 {[%emt 0:00:06]} Nge7 {[%emt 0:00:26]} 8. d4 {[%emt 0:01:21] White is slightly better.} cxd4 {[%emt 0:00:28]} 9. cxd4 {[%emt 0:00:07]} exd4 {[%emt 0:01:36]} 10. Nxd4 {[%emt 0:16:11]} Nxd4 {[%emt 0:00:52]} 11. Qxd4 {[%emt 0:00:03]} Qc7 {[%emt 0:00:14][%csl LRc2,LRh2]} 12. h3 {[%emt 0:02:18]} O-O {[%emt 0:07:44]} 13. Qd3 {[%emt 0:02:26][%cal Oe4e5]} Ng6 {[%emt 0:02:42][%cal Be7g6,Bg6f4,Bf4e6,Be6d4][%mdl 32]} 14. Nc3 {[%emt 0:00:11] [#]} Bb7 $146 {[%emt 0:05:25]} ({Predecessor:} 14... Ne5 15. Qe2 Bb7 16. Rd1 Bc5 17. Bf4 d6 18. Bb3 Rae8 19. Bd5 Bc8 20. Rac1 Qe7 21. a3 Qh4 22. Bg3 Qxg3 {0-1 (22) Pirard,N (2049)-Vande Velde,E (1894) Brasschaat 2017}) 15. Bb3 {[%emt 0:04:14]} Bh2+ {[%emt 0:04:29]} 16. Kh1 {[%emt 0:00:25]} Bf4 {[%emt 0:01:49]} 17. Bxf4 {[%emt 0:04:56]} (17. Rd1) 17... Nxf4 {[%emt 0:00:25]} 18. Qg3 {[%emt 0:00:18]} Rac8 {[%emt 0:01:50]} 19. Rac1 {[%emt 0:05:26][%cal Oc3e2] [#] Strongly threatening Ne2!} Ne6 {[%emt 0:04:47]} 20. f4 {[%emt 0:12:20]} Nd4 {[%emt 0:02:09]} 21. Bd5 {[%emt 0:06:04]} Bxd5 $2 {[%emt 0:08:19]} (21... b4 $1 $11 {and Black has nothing to worry.} 22. Qe3 bxc3 23. Qxd4 Bxd5 24. Qxd5 Qc4 25. bxc3 Qxd5 26. exd5 Rc5) 22. Nxd5 $18 {[%emt 0:00:20]} Qxc1 {[%emt 0:14:12]} 23. Rxc1 {[%emt 0:00:04]} Rxc1+ {[%emt 0:00:08]} 24. Kh2 {[%emt 0:00:05] [#] And now Qe3 would win.} Nc6 {[%emt 0:01:33]} 25. Nf6+ {[%emt 0:07:02][%mdl 1024] White has strong compensation.} Kh8 {[%emt 0:00:06]} 26. Nh5 {[%emt 0:00:13][%csl Gh5][%cal Rg3g7]} g6 {[%emt 0:03:35]} (26... Rg8) 27. Nf6 {[%emt 0:00:11][%cal Bh5f6,Bf6d7,Bd7e5][%mdl 32]} Kg7 {[%emt 0:00:33]} 28. Qh4 {[%emt 0:02:19]} Rc2 $2 {[%emt 0:07:34]} (28... Rd1 29. f5 (29. Nxh7 Rh8 $16) 29... Ne5 30. Nxh7 Rh8) 29. Nxd7 {[%emt 0:01:56]} Rd8 {[%emt 0:00:30]} 30. Qf6+ {[%emt 0:00:08]} Kg8 {[%emt 0:00:08]} 31. Ne5 {[%emt 0:00:03]} Rc8 {[%emt 0:01:36]} 32. Qxf7+ {[%emt 0:00:41] Weighted Error Value: White=0.11 (very precise) /Black=0.64} 1-0

[Event "Dutch Open 2022"]
[Site "Dieren"]
[Date "2022.07.26"]
[Round "1.16"]
[White "Shakhverdian, William"]
[Black "Mollema, Thomas"]
[Result "1-0"]
[ECO "D40"]
[WhiteElo "2040"]
[BlackElo "2235"]
[Annotator "TA"]
[PlyCount "58"]
[EventDate "2022.07.14"]
[EventType "swiss"]
[EventCountry "NED"]
[SourceTitle "playchess.com"]
[Source "ChessBase"]
[SourceQuality "1"]
[TimeControl "40/5400+30:1800+30"]

{[%evp 15,58,6,14,17,65,73,85,72,72,14,14,24,27,4,18,17,12,0,10,0,17,0,-14,-71,-72,-64,0,0,0,0,76,92,109,100,123,108,109,0,0,-30,-9,-22,-37,-27,-13]} 1. d4 {[%emt 0:00:03]} d5 {[%emt 0:00:20]} 2. c4 {[%emt 0:00:12]} e6 {[%emt 0:00:16]} 3. Nf3 {[%emt 0:00:43]} c5 {[%emt 0:00:10]} 4. e3 {[%emt 0:01:35]} Nf6 {[%emt 0:01:29]} 5. Nc3 {[%emt 0:01:42]} Nc6 {[%emt 0:01:09]} 6. a3 {[%emt 0:06:17]} a6 {[%emt 0:05:44]} 7. dxc5 {[%emt 0:08:38]} Bxc5 {[%emt 0:02:04]} 8. b4 {[%emt 0:01:49]} Ba7 {[%emt 0:00:20]} 9. Be2 {[%emt 0:04:52] [#] D40: Queen's Gambit Declined: Semi-Tarrasch with 5 e3.} d4 $146 {[%emt 0:06:05]} (9... O-O $11 {deserves consideration.}) ({Predecessor:} 9... O-O 10. O-O Qe7 11. Qc2 dxc4 12. Bxc4 b5 13. Bd3 Bb7 14. Bb2 Rac8 15. Rad1 Bb8 16. Qe2 Ne5 17. Nxe5 Bxe5 18. Nb1 {0-1 (35) Kozlovskaya,V (2161)-Manor,I (2461) Rhodes 2019}) 10. exd4 $14 {[%emt 0:02:03]} Nxd4 {[%emt 0:00:21]} 11. c5 {[%emt 0:10:38] White is better.} Nxe2 {[%emt 0:00:36]} 12. Qxd8+ {[%emt 0:00:08]} ({Don't play} 12. Nxe2 Qxd1+ 13. Kxd1 Bd7 $15) ({But not} 12. Kxe2 Bd7 $11) (12. Qxe2 $16 {Hoping for Bg5.} b6 13. c6) 12... Kxd8 $11 {[%emt 0:00:03]} 13. Kxe2 {[%emt 0:00:07]} Bb8 {[%emt 0:08:26]} 14. Bg5 {[%emt 0:06:28]} Bd7 {[%emt 0:01:49] Inhibits Na4.} 15. Rhd1 {[%emt 0:07:49]} Ke7 {[%emt 0:01:14]} 16. Bh4 {[%emt 0:05:47]} Bc6 {[%emt 0:01:59]} 17. a4 {[%emt 0:11:22]} Rc8 {[%emt 0:03:28]} 18. Rd3 {[%emt 0:06:15]} a5 {[%emt 0:06:37]} 19. Rb1 {[%emt 0:11:57]} (19. b5 $1 $11 Bxf3+ 20. gxf3) 19... axb4 $17 {[%emt 0:26:43]} 20. Rxb4 {[%emt 0:00:06]} Ra5 {[%emt 0:01:27]} (20... Kf8 $15 21. Bxf6 gxf6) 21. Nd4 $11 {[%emt 0:02:55] Pair of Knights!} Rxc5 {[%emt 0:17:48]} 22. Nxc6+ {[%emt 0:00:13]} bxc6 {[%emt 0:00:32]} (22... R5xc6 $11 23. Rxb7+ R6c7) 23. Rb7+ $16 {[%emt 0:05:13]} Bc7 {[%emt 0:00:13]} 24. Ne4 {[%emt 0:02:25] Prevents g5. White is more active.} Re5 {[%emt 0:03:07] [#]} 25. f3 {[%emt 0:00:18] Black must now prevent Bg3.} Rd5 {[%emt 0:05:36] [#]} 26. Nxf6 {[%emt 0:03:16]} ({Better is} 26. a5 $1 $16 {[%cal Ra5a6]}) 26... gxf6 $11 {[%emt 0:00:09]} 27. Rxd5 {[%emt 0:00:16]} cxd5 {[%emt 0:00:25]} 28. a5 {[%emt 0:00:10]} Kd6 {[%emt 0:03:37]} 29. Bxf6 {[%emt 0:00:29]} Bxa5 {[%emt 0:00:00][%mdl 32768] Weighted Error Value: White=0.20 (precise) /Black=0.17 (very precise) . Loss on time!?} 1-0